[Event "XVI Gran Hotel Bali 2017"]
[Site "Benidorm"]
[Date "2017.12.05"]
[Round "6"]
[White "Yuksel, Atilla Koksal"]
[Black "Rodriguez Alvarez, Vidal"]
[Result "1-0"]
[ECO "B23"]
[WhiteElo "2184"]
[BlackElo "2256"]
[Annotator "NA RC"]
[PlyCount "74"]
[EventDate "2017.??.??"]
[EventType "swiss"]
[EventCountry "ESP"]
[SourceTitle "playchess.com"]
[Source "ChessBase"]
[SourceQuality "1"]
[TimeControl "5400+30"]

{[%evp 8,56,-7,32767,-18,-35,-27,-33,-25,-29,-26,-40,0,-13,0,-13,11,0,17,32767,32767,32767,12,-8,15,16,11,23,7,8,32767,32767,32767,32767,32767,3,4,0,15,9,22,24,20,32767,23,18,32767,32767,32767,32767,170]} 1. e4 {[%emt 0:05:23]} c5 {[%emt 0:00:06]} 2. Nc3 {[%emt 0:00:18]} g6 {[%emt 0:01:03]} 3. f4 {[%emt 0:00:15]} Bg7 {[%emt 0:00:07]} 4. Nf3 {[%emt 0:00:12]} Nc6 {[%emt 0:00:03]} 5. Bc4 {[%emt 0:00:29]} e6 {[%emt 0:00:12]} 6. d3 {[%emt 0:00:18]} Nge7 {[%emt 0:00:47]} 7. O-O {[%emt 0:00:13]} d5 {[%emt 0:02:30]} 8. Bb3 {[%emt 0:00:07]} O-O {[%emt 0:01:28]} 9. Qe1 {[%emt 0:00:18]} Nd4 {[%emt 0:03:37]} 10. Nxd4 $1 {[%emt 0:00:07]} cxd4 {[%emt 0:00:02]} 11. Ne2 {[%emt 0:00:07]} dxe4 {[%emt 0:00:30]} 12. dxe4 {[%emt 0:00:03]} d3 {[%emt 0:04:49] LiveBook: 5 Games B23: Closed Sicilian: Lines without g3} (12... b6 13. Bc4 Bb7 14. Bd3 f5 15. Ng3 Qd7 16. Bd2 Kh8 17. Qe2 Rac8 18. h3 Rfe8 19. e5 Rcd8 20. Qf2 Nc6 {½-½ (84) Saric,I (2441)-Leskur,D (2476) Sibenik 2005}) 13. Nc3 {[%emt 0:00:28]} b6 {[%emt 0:02:17]} 14. Be3 {[%emt 0:06:12]} dxc2 {[%emt 0:01:29]} 15. Bxc2 {[%emt 0:00:29]} Nc6 {[%emt 0:06:38]} 16. Rd1 {[%emt 0:02:20]} Qe7 {[%emt 0:01:58]} 17. e5 {[%emt 0:04:50]} Ba6 {[%emt 0:06:44]} 18. Rf2 {[%emt 0:03:58]} {Predecessor:} Rad8 $146 {[%emt 0:03:00]} 19. Be4 {[%emt 0:04:12]} Rxd1 {[%emt 0:06:40]} 20. Qxd1 {[%emt 0:00:29]} Rd8 {[%emt 0:05:27]} 21. Rd2 {[%emt 0:07:27]} Rxd2 {[%emt 0:00:40]} 22. Qxd2 {[%emt 0:00:06]} Na5 {[%emt 0:00:40]} 23. b3 {[%emt 0:02:36]} Bf8 {[%emt 0:01:16]} 24. Bf3 {[%emt 0:02:58]} Bb7 {[%emt 0:05:53]} 25. Ne4 {[%emt 0:03:14]} Kg7 {[%emt 0:04:36]} 26. h3 {[%emt 0:12:11]} Bxe4 {[%emt 0:06:45]} 27. Bxe4 {[%emt 0:00:07]} Qa3 {[%emt 0:00:34]} 28. Kh2 {[%emt 0:04:26]} Bc5 $18 {[%emt 0:00:56]} ({Günstiger ist} 28... Qb4 $14 29. Qxb4 Bxb4) 29. f5 {[%emt 0:01:28]} Bxe3 {[%emt 0:06:41]} 30. f6+ {[%emt 0:00:05]} Kg8 {[%emt 0:00:11]} 31. Qxe3 {[%emt 0:00:06]} Qc5 {[%emt 0:01:48]} 32. Qf4 {[%emt 0:05:00]} Qd4 {[%emt 0:06:07]} 33. g3 {[%emt 0:02:47]} Qb4 {[%emt 0:07:05]} 34. Qh6 {[%emt 0:06:23]} Qf8 {[%emt 0:00:02]} 35. Qd2 {[%emt 0:00:07]} Qc8 {[%emt 0:03:58]} 36. Qd6 {[%emt 0:04:42]} b5 {[%emt 0:02:43]} 37. Qd2 {[%emt 0:00:24]} Qd8 1-0

[Event "XVI Gran Hotel Bali 2017"]
[Site "Benidorm"]
[Date "2017.12.09"]
[Round "10"]
[White "Olhovik, Andrei"]
[Black "Rodriguez Alvarez, Vidal"]
[Result "1/2-1/2"]
[ECO "A40"]
[WhiteElo "2299"]
[BlackElo "2256"]
[Annotator "NA"]
[PlyCount "51"]
[EventDate "2017.??.??"]
[EventType "swiss"]
[EventCountry "ESP"]
[SourceTitle "playchess.com"]
[Source "ChessBase"]
[SourceQuality "1"]
[TimeControl "5400+30"]

1. d4 {[%emt 0:00:04]} e6 {[%emt 0:00:30]} 2. Nf3 {[%emt 0:00:53]} Nf6 {[%emt 0:00:15]} 3. Bf4 {[%emt 0:00:42]} d5 {[%emt 0:00:49]} 4. e3 {[%emt 0:00:17]} Bd6 {[%emt 0:00:10]} 5. Bg3 {[%emt 0:00:17]} O-O {[%emt 0:00:13]} 6. Nbd2 {[%emt 0:00:18]} c5 {[%emt 0:00:57]} 7. c3 {[%emt 0:00:29]} Nc6 {[%emt 0:00:41]} 8. Bd3 {[%emt 0:05:22]} b6 {[%emt 0:00:12]} 9. Qe2 {[%emt 0:04:36]} Bb7 {[%emt 0:02:54]} 10. O-O {[%emt 0:16:17]} Bxg3 {[%emt 0:02:25]} 11. hxg3 {[%emt 0:00:05]} Qd6 {[%emt 0:00:30]} 12. dxc5 {[%emt 0:04:51]} Qxc5 {[%emt 0:01:51]} 13. e4 {[%emt 0:01:54]} dxe4 {[%emt 0:02:37]} 14. Nxe4 {[%emt 0:00:10]} Nxe4 {[%emt 0:05:43]} 15. Qxe4 {[%emt 0:03:41]} g6 {[%emt 0:01:06]} 16. Rad1 {[%emt 0:08:50]} Qe7 {[%emt 0:04:48]} 17. Qe3 {[%emt 0:08:14]} Rfd8 {[%emt 0:01:14]} 18. Be4 {[%emt 0:05:26]} Rxd1 {[%emt 0:02:54]} 19. Rxd1 {[%emt 0:00:06]} Rd8 {[%emt 0:00:21]} 20. Rxd8+ {[%emt 0:01:56]} Qxd8 {[%emt 0:02:35]} 21. g4 {[%emt 0:01:49]} Qd1+ {[%emt 0:03:07]} 22. Kh2 {[%emt 0:00:19]} Qd6+ {[%emt 0:00:03]} 23. Kg1 {[%emt 0:03:07]} Qd1+ {[%emt 0:00:29]} 24. Kh2 {[%emt 0:00:19]} Qd6+ {[%emt 0:00:02]} 25. Kg1 {[%emt 0:02:28]} Qd1+ {[%emt 0:00:20]} 26. Kh2 {[%emt 0:00:07]} 1/2-1/2

[Event "XVI Gran Hotel Bali 2017"]
[Site "Benidorm"]
[Date "2017.12.09"]
[Round "10"]
[White "Ibanez Aullana, Ramon"]
[Black "Levay, Sorin"]
[Result "0-1"]
[ECO "B07"]
[WhiteElo "2295"]
[BlackElo "2196"]
[Annotator "NA"]
[PlyCount "82"]
[EventDate "2017.??.??"]
[EventType "swiss"]
[EventCountry "ESP"]
[SourceTitle "playchess.com"]
[Source "ChessBase"]
[SourceQuality "1"]
[TimeControl "5400+30"]

1. d4 {[%emt 0:04:58]} d6 {[%emt 0:00:10]} 2. e4 {[%emt 0:00:19]} Nf6 {[%emt 0:00:06]} 3. Nc3 {[%emt 0:01:57]} Nbd7 {[%emt 0:00:15]} 4. Nf3 {[%emt 0:04:08]} e5 {[%emt 0:00:07]} 5. Bc4 {[%emt 0:01:14]} Be7 {[%emt 0:00:08]} 6. O-O {[%emt 0:01:27]} O-O {[%emt 0:00:06]} 7. a4 {[%emt 0:05:16]} c6 {[%emt 0:00:07]} 8. Re1 {[%emt 0:04:53]} b6 {[%emt 0:00:09]} 9. Ba2 {[%emt 0:07:19]} a6 {[%emt 0:00:09]} 10. Qd3 {[%emt 0:05:49]} Rb8 {[%emt 0:00:39]} 11. Ne2 {[%emt 0:01:37]} Bb7 {[%emt 0:16:13]} 12. Ng3 {[%emt 0:00:24]} exd4 {[%emt 0:01:27]} 13. Nxd4 {[%emt 0:09:27]} Nc5 {[%emt 0:02:14]} 14. Qf3 {[%emt 0:03:36]} Nfd7 {[%emt 0:01:31]} 15. Ngf5 {[%emt 0:01:47]} Bf6 {[%emt 0:01:13]} 16. Qg3 {[%emt 0:06:38]} Ne5 {[%emt 0:00:24]} 17. Bh6 {[%emt 0:14:31]} Ng6 {[%emt 0:00:21]} 18. Rad1 {[%emt 0:01:28]} Nxe4 {[%emt 0:16:48]} 19. Rxe4 {[%emt 0:00:54]} d5 {[%emt 0:00:13]} 20. Bxg7 {[%emt 0:05:07]} Bxg7 {[%emt 0:02:47]} 21. Rg4 {[%emt 0:03:21]} Qf6 {[%emt 0:07:55]} 22. h4 {[%emt 0:01:40]} Bc8 {[%emt 0:04:53]} 23. Rxg6 {[%emt 0:01:39]} hxg6 {[%emt 0:02:49]} 24. Nxg7 {[%emt 0:02:01]} Kxg7 {[%emt 0:00:29]} 25. Nxc6 {[%emt 0:01:33]} Rb7 {[%emt 0:01:10]} 26. Nd4 {[%emt 0:00:45]} Rh8 {[%emt 0:00:35]} 27. Nf3 {[%emt 0:03:14]} Qxb2 {[%emt 0:00:54]} 28. Bxd5 {[%emt 0:00:58]} Rd7 {[%emt 0:00:29]} 29. c4 {[%emt 0:00:31]} Qf6 {[%emt 0:03:30]} 30. Rd4 {[%emt 0:00:09]} Bb7 {[%emt 0:03:52]} 31. Kh2 {[%emt 0:03:10]} Bxd5 {[%emt 0:01:04]} 32. cxd5 {[%emt 0:00:02]} Rh5 {[%emt 0:00:33]} 33. d6 {[%emt 0:01:44]} Rf5 {[%emt 0:00:07]} 34. Rd3 {[%emt 0:00:47]} Rf4 {[%emt 0:00:35]} 35. a5 {[%emt 0:01:34]} bxa5 {[%emt 0:00:21]} 36. Rd5 {[%emt 0:00:37]} Rxd6 {[%emt 0:00:32]} 37. Rxa5 {[%emt 0:00:47]} Rd3 {[%emt 0:02:38]} 38. h5 {[%emt 0:00:23]} Rdxf3 {[%emt 0:01:18]} 39. gxf3 {[%emt 0:00:20]} Rxf3 {[%emt 0:00:14]} 40. Rxa6 {[%emt 0:01:24]} Rxf2+ {[%emt 0:00:38]} 41. Kg1 {[%emt 0:00:01]} Rf1+ {[%emt 0:00:11]} 0-1

[Event "XVI Gran Hotel Bali 2017"]
[Site "Benidorm"]
[Date "2017.12.09"]
[Round "10"]
[White "Iglesias, Jorge"]
[Black "Zohaib Hassan, Mohamed"]
[Result "0-1"]
[ECO "A27"]
[WhiteElo "2291"]
[BlackElo "2231"]
[Annotator "NA"]
[PlyCount "114"]
[EventDate "2017.??.??"]
[EventType "swiss"]
[EventCountry "ESP"]
[SourceTitle "playchess.com"]
[Source "ChessBase"]
[SourceQuality "1"]
[TimeControl "5400+30"]

1. c4 e5 {[%emt 0:06:30]} 2. Nc3 {[%emt 0:00:16]} Nc6 {[%emt 0:00:12]} 3. Nf3 {[%emt 0:00:15]} f5 {[%emt 0:00:58]} 4. d4 {[%emt 0:02:09]} e4 {[%emt 0:01:23]} 5. Bg5 {[%emt 0:00:50]} Nf6 {[%emt 0:10:35]} 6. Nd2 {[%emt 0:01:38]} Be7 {[%emt 0:06:14]} 7. e3 {[%emt 0:01:09]} O-O {[%emt 0:01:21]} 8. Be2 {[%emt 0:01:18]} d6 {[%emt 0:03:30]} 9. O-O {[%emt 0:00:36]} h6 {[%emt 0:01:18]} 10. Bxf6 {[%emt 0:02:27]} Bxf6 {[%emt 0:00:34]} 11. Nd5 {[%emt 0:11:55]} Bg5 {[%emt 0:06:31]} 12. f4 {[%emt 0:06:34]} exf3 {[%emt 0:00:52]} 13. Nxf3 {[%emt 0:00:08]} Ne7 {[%emt 0:04:22]} 14. Nf4 {[%emt 0:02:20]} Qe8 {[%emt 0:05:43]} 15. Kh1 {[%emt 0:08:55]} Bf6 {[%emt 0:06:50]} 16. Qb3 {[%emt 0:13:23]} c6 {[%emt 0:07:30]} 17. Bd3 {[%emt 0:08:10]} g5 {[%emt 0:02:17]} 18. Ne2 {[%emt 0:00:34]} Bg7 {[%emt 0:11:37]} 19. Rae1 {[%emt 0:01:34]} Ng6 {[%emt 0:01:19]} 20. Ng3 {[%emt 0:02:41]} g4 {[%emt 0:00:32]} 21. Ng1 {[%emt 0:02:42]} Nh4 {[%emt 0:02:51]} 22. Qc2 {[%emt 0:00:31]} Qg6 {[%emt 0:01:17]} 23. N1e2 {[%emt 0:03:05]} Qg5 {[%emt 0:00:35]} 24. Nf4 {[%emt 0:00:41]} Bd7 {[%emt 0:00:27]} 25. Nfh5 {[%emt 0:05:43]} Rae8 {[%emt 0:01:16]} 26. Qf2 {[%emt 0:01:52]} Bh8 {[%emt 0:01:14]} 27. Nf4 {[%emt 0:02:56]} c5 {[%emt 0:00:46]} 28. d5 {[%emt 0:01:07]} Be5 {[%emt 0:00:57]} 29. Nge2 {[%emt 0:01:35]} Re7 {[%emt 0:01:08]} 30. Ne6 {[%emt 0:01:30]} Bxe6 {[%emt 0:00:24]} 31. dxe6 {[%emt 0:00:07]} Rxe6 {[%emt 0:00:47]} 32. Nf4 {[%emt 0:00:14]} Re7 {[%emt 0:00:50]} 33. Rb1 {[%emt 0:04:16]} a5 {[%emt 0:00:54]} 34. a3 {[%emt 0:00:02]} Rfe8 {[%emt 0:01:57]} 35. b4 {[%emt 0:00:15]} axb4 {[%emt 0:00:25]} 36. axb4 {[%emt 0:00:10]} b6 {[%emt 0:00:15]} 37. Nd5 {[%emt 0:00:45]} Rf7 {[%emt 0:00:01]} 38. Nxb6 {[%emt 0:02:09]} g3 {[%emt 0:00:11]} 39. Qc2 {[%emt 0:02:22]} gxh2 {[%emt 0:01:11]} 40. Nd5 {[%emt 0:00:31]} cxb4 {[%emt 0:00:11]} 41. Rxb4 {[%emt 0:01:18]} Kh8 {[%emt 0:00:22]} 42. Nf4 {[%emt 0:01:14]} Rg7 {[%emt 0:01:15]} 43. c5 {[%emt 0:01:48]} dxc5 {[%emt 0:00:16]} 44. Rb6 {[%emt 0:00:13]} Reg8 {[%emt 0:06:30]} 45. Bc4 {[%emt 0:00:40]} Re8 {[%emt 0:01:39]} 46. Bd5 {[%emt 0:01:23]} Kh7 {[%emt 0:01:13]} 47. Ne6 {[%emt 0:01:27]} Rxe6 {[%emt 0:02:24]} 48. Rxe6 {[%emt 0:01:42]} Qxe3 {[%emt 0:00:10]} 49. Qb1 {[%emt 0:01:25]} Qd4 {[%emt 0:01:37]} 50. Bc6 {[%emt 0:01:19]} c4 {[%emt 0:00:29]} 51. Qc1 {[%emt 0:00:18]} Rg6 {[%emt 0:00:22]} 52. Re7+ {[%emt 0:00:37]} Bg7 {[%emt 0:00:13]} 53. Bb7 {[%emt 0:01:58]} c3 {[%emt 0:00:09]} 54. Rd1 {[%emt 0:00:25]} Qf2 {[%emt 0:00:46]} 55. Qxc3 {[%emt 0:01:25]} Rxg2 {[%emt 0:00:56]} 56. Qc1 {[%emt 0:00:35]} Nf3 {[%emt 0:00:32]} 57. Ree1 {[%emt 0:00:33]} Rg1+ {[%emt 0:00:12]} 0-1

[Event "XVI Gran Hotel Bali 2017"]
[Site "Benidorm"]
[Date "2017.12.09"]
[Round "10"]
[White "Ayats Llobera, Gerard"]
[Black "Lornye, Pylyp"]
[Result "1/2-1/2"]
[ECO "B70"]
[WhiteElo "2285"]
[BlackElo "2264"]
[Annotator "NA"]
[PlyCount "34"]
[EventDate "2017.??.??"]
[EventType "swiss"]
[EventCountry "ESP"]
[SourceTitle "playchess.com"]
[Source "ChessBase"]
[SourceQuality "1"]
[TimeControl "5400+30"]

1. e4 {[%emt 0:00:00]} c5 {[%emt 0:00:51]} 2. Nf3 {[%emt 0:00:00]} d6 {[%emt 0:00:13]} 3. d4 {[%emt 0:04:04]} cxd4 {[%emt 0:00:05]} 4. Nxd4 {[%emt 0:00:03]} Nf6 {[%emt 0:00:06]} 5. Nc3 {[%emt 0:00:02]} g6 {[%emt 0:00:07]} 6. Be2 {[%emt 0:00:43]} Bg7 {[%emt 0:03:21]} 7. O-O {[%emt 0:00:02]} O-O {[%emt 0:00:08]} 8. Re1 {[%emt 0:00:38]} Nc6 {[%emt 0:02:07]} 9. Nb3 {[%emt 0:00:01]} Be6 {[%emt 0:13:11]} 10. Bf1 {[%emt 0:00:49]} Rc8 {[%emt 0:08:56]} 11. Nd5 {[%emt 0:11:19]} Ne5 {[%emt 0:10:10]} 12. c3 {[%emt 0:04:06]} Nc4 {[%emt 0:04:47]} 13. Bxc4 {[%emt 0:05:54]} Rxc4 {[%emt 0:00:11]} 14. Qd3 {[%emt 0:00:01]} Rc8 {[%emt 0:04:48]} 15. Bg5 {[%emt 0:22:00]} Bxd5 {[%emt 0:07:15]} 16. exd5 {[%emt 0:00:13]} Qd7 {[%emt 0:00:02]} 17. h3 {[%emt 0:04:55]} Rfe8 {[%emt 0:00:21]} 1/2-1/2

[Event "XVI Gran Hotel Bali 2017"]
[Site "Benidorm"]
[Date "2017.12.09"]
[Round "10"]
[White "Serra Pages, Jordi"]
[Black "Picazo Lopez, Juan Antonio"]
[Result "1/2-1/2"]
[ECO "D20"]
[WhiteElo "2238"]
[BlackElo "2204"]
[Annotator "NA"]
[PlyCount "143"]
[EventDate "2017.??.??"]
[EventType "swiss"]
[EventCountry "ESP"]
[SourceTitle "playchess.com"]
[Source "ChessBase"]
[SourceQuality "1"]
[TimeControl "5400+30"]

1. d4 d5 {[%emt 0:00:52]} 2. c4 {[%emt 0:00:06]} dxc4 {[%emt 0:00:54]} 3. e3 {[%emt 0:01:26]} e5 {[%emt 0:00:39]} 4. Bxc4 {[%emt 0:01:00]} exd4 {[%emt 0:00:40]} 5. exd4 {[%emt 0:00:26]} Bd6 {[%emt 0:00:50]} 6. Nf3 {[%emt 0:00:50]} Nf6 {[%emt 0:00:49]} 7. Qe2+ {[%emt 0:02:44]} Qe7 {[%emt 0:00:54]} 8. Qxe7+ {[%emt 0:00:48]} Kxe7 {[%emt 0:00:34]} 9. Nc3 {[%emt 0:03:41]} Bd7 {[%emt 0:03:10]} 10. Bg5 {[%emt 0:03:44]} Re8 {[%emt 0:02:46]} 11. O-O {[%emt 0:02:28]} Kf8 {[%emt 0:00:33]} 12. Nb5 {[%emt 0:17:27]} Bxb5 {[%emt 0:00:32]} 13. Bxb5 {[%emt 0:00:07]} c6 {[%emt 0:00:29]} 14. Bxf6 {[%emt 0:02:30]} gxf6 {[%emt 0:03:42]} 15. Bd3 {[%emt 0:00:37]} Kg8 {[%emt 0:00:57]} 16. Nh4 {[%emt 0:04:16]} Nd7 {[%emt 0:00:58]} 17. Nf5 {[%emt 0:00:33]} Bf8 {[%emt 0:00:25]} 18. Rae1 {[%emt 0:03:19]} Nb6 {[%emt 0:03:40]} 19. Re3 {[%emt 0:02:27]} Nd5 {[%emt 0:00:25]} 20. Rf3 {[%emt 0:10:00]} Rad8 {[%emt 0:01:14]} 21. Rc1 {[%emt 0:01:54]} Ne7 {[%emt 0:14:07]} 22. Rg3+ {[%emt 0:17:14]} Kh8 {[%emt 0:01:02]} 23. Rh3 {[%emt 0:01:47]} Nxf5 {[%emt 0:05:03]} 24. Bxf5 {[%emt 0:03:23]} Rxd4 {[%emt 0:00:14]} 25. Bxh7 {[%emt 0:02:13]} Rd2 {[%emt 0:04:49]} 26. Bd3+ {[%emt 0:14:44]} Kg8 {[%emt 0:00:27]} 27. Rg3+ {[%emt 0:00:12]} Bg7 {[%emt 0:00:33]} 28. Rb1 {[%emt 0:00:47]} Rd8 {[%emt 0:09:01]} 29. Bf1 {[%emt 0:00:21]} f5 {[%emt 0:00:20]} 30. a4 {[%emt 0:01:13]} R8d4 {[%emt 0:03:54]} 31. b3 {[%emt 0:00:40]} Rf4 {[%emt 0:01:31]} 32. Rd3 {[%emt 0:02:08]} Rfxf2 {[%emt 0:01:53]} 33. Rxd2 {[%emt 0:00:28]} Rxd2 {[%emt 0:00:01]} 34. Bc4 {[%emt 0:00:44]} f4 {[%emt 0:00:42]} 35. Rf1 {[%emt 0:00:21]} Bd4+ {[%emt 0:00:31]} 36. Kh1 {[%emt 0:00:05]} Bf2 {[%emt 0:00:23]} 37. g3 {[%emt 0:00:39]} f3 {[%emt 0:01:24]} 38. h4 {[%emt 0:00:16]} Kg7 {[%emt 0:00:14]} 39. Kh2 {[%emt 0:00:57]} Bd4+ {[%emt 0:01:39]} 40. Kh3 {[%emt 0:00:12]} f2 {[%emt 0:00:06]} 41. Rb1 {[%emt 0:00:54]} Rc2 {[%emt 0:00:44]} 42. g4 {[%emt 0:00:25]} a6 {[%emt 0:01:51]} 43. g5 {[%emt 0:00:37]} Rc3+ {[%emt 0:01:01]} 44. Kg2 {[%emt 0:00:34]} f6 {[%emt 0:00:20]} 45. Rd1 {[%emt 0:00:24]} c5 {[%emt 0:01:04]} 46. gxf6+ {[%emt 0:00:38]} Kxf6 {[%emt 0:00:02]} 47. Rd3 {[%emt 0:00:27]} Rc1 {[%emt 0:01:06]} 48. Rf3+ {[%emt 0:00:23]} Kg6 {[%emt 0:00:56]} 49. Kh3 {[%emt 0:00:43]} Kh6 {[%emt 0:01:14]} 50. Kg4 {[%emt 0:00:35]} Rg1+ {[%emt 0:00:49]} 51. Kh3 {[%emt 0:00:21]} Be5 {[%emt 0:03:41]} 52. h5 {[%emt 0:00:36]} Bd4 {[%emt 0:01:06]} 53. Rf5 {[%emt 0:00:17]} Rb1 {[%emt 0:01:29]} 54. a5 {[%emt 0:00:45]} Ra1 {[%emt 0:00:38]} 55. Rf7 {[%emt 0:00:32]} Kxh5 {[%emt 0:03:21]} 56. Kg2 {[%emt 0:00:30]} Kg6 {[%emt 0:00:18]} 57. Rxb7 {[%emt 0:00:29]} Rg1+ {[%emt 0:00:23]} 58. Kf3 {[%emt 0:00:20]} f1=Q+ {[%emt 0:01:38]} 59. Bxf1 {[%emt 0:00:05]} Rxf1+ {[%emt 0:00:04]} 60. Ke4 {[%emt 0:00:08]} Bc3 {[%emt 0:01:11]} 61. Rb6+ {[%emt 0:01:28]} Kf7 {[%emt 0:05:42]} 62. Rxa6 {[%emt 0:00:23]} Rd1 {[%emt 0:12:17]} 63. Rc6 {[%emt 0:00:29]} Bb4 {[%emt 0:00:13]} 64. a6 {[%emt 0:00:37]} Ke8 {[%emt 0:00:23]} 65. Rc8+ {[%emt 0:00:18]} Kd7 {[%emt 0:00:26]} 66. a7 {[%emt 0:00:08]} Rd4+ {[%emt 0:00:09]} 67. Ke5 {[%emt 0:00:24]} Kxc8 {[%emt 0:00:04]} 68. a8=Q+ {[%emt 0:00:06]} Kc7 {[%emt 0:00:02]} 69. Qa7+ {[%emt 0:00:19]} Kc6 {[%emt 0:00:15]} 70. Qa6+ {[%emt 0:00:17]} Kc7 {[%emt 0:00:01]} 71. Qa7+ {[%emt 0:01:30]} Kc6 {[%emt 0:00:01]} 72. Qa6+ {[%emt 0:00:16]} 1/2-1/2

[Event "XVI Gran Hotel Bali 2017"]
[Site "Benidorm"]
[Date "2017.12.09"]
[Round "10"]
[White "Olcum, Ahmet"]
[Black "Saber, Yasser"]
[Result "1-0"]
[ECO "B08"]
[WhiteElo "2231"]
[BlackElo "2248"]
[Annotator "NA"]
[PlyCount "61"]
[EventDate "2017.??.??"]
[EventType "swiss"]
[EventCountry "ESP"]
[SourceTitle "playchess.com"]
[Source "ChessBase"]
[SourceQuality "1"]
[TimeControl "5400+30"]

1. d4 {[%emt 0:03:57]} d6 {[%emt 0:00:12]} 2. e4 {[%emt 0:00:50]} Nf6 {[%emt 0:00:05]} 3. Nc3 {[%emt 0:00:11]} g6 {[%emt 0:00:03]} 4. Nf3 {[%emt 0:13:51]} Bg7 {[%emt 0:00:36]} 5. Be2 {[%emt 0:00:01]} O-O {[%emt 0:00:22]} 6. O-O {[%emt 0:00:03]} c6 {[%emt 0:03:08]} 7. a4 {[%emt 0:00:22]} Qc7 {[%emt 0:03:24]} 8. a5 {[%emt 0:11:15]} e5 {[%emt 0:08:16]} 9. dxe5 {[%emt 0:03:26]} dxe5 {[%emt 0:00:03]} 10. Be3 {[%emt 0:02:05]} Ng4 {[%emt 0:06:15]} 11. Bc5 {[%emt 0:07:57]} Rd8 {[%emt 0:00:23]} 12. Nd2 {[%emt 0:04:13]} h5 {[%emt 0:21:39]} 13. Bb6 {[%emt 0:05:25]} axb6 {[%emt 0:02:31]} 14. axb6 {[%emt 0:00:15]} Qxb6 {[%emt 0:00:39]} 15. Rxa8 {[%emt 0:00:16]} Na6 {[%emt 0:06:38]} 16. Bxa6 {[%emt 0:05:34]} bxa6 {[%emt 0:00:32]} 17. Nc4 {[%emt 0:00:10]} Qc7 {[%emt 0:03:44]} 18. Ra7 {[%emt 0:06:10]} Rxd1 {[%emt 0:08:10]} 19. Rxc7 {[%emt 0:00:05]} Rd8 {[%emt 0:00:39]} 20. Rd1 {[%emt 0:00:09]} Rf8 {[%emt 0:00:15]} 21. Rxc6 {[%emt 0:01:00]} Nf6 {[%emt 0:01:36]} 22. Nd5 {[%emt 0:00:51]} Be6 {[%emt 0:00:09]} 23. Nxf6+ {[%emt 0:00:26]} Bxf6 {[%emt 0:00:03]} 24. Ne3 {[%emt 0:00:19]} Rb8 {[%emt 0:00:26]} 25. b3 {[%emt 0:01:43]} a5 {[%emt 0:00:07]} 26. Nd5 {[%emt 0:00:26]} Bd8 {[%emt 0:00:08]} 27. Nc7 {[%emt 0:00:40]} Bg4 {[%emt 0:01:15]} 28. f3 {[%emt 0:01:00]} Bxc7 {[%emt 0:00:11]} 29. Rxc7 {[%emt 0:00:17]} Be6 {[%emt 0:00:10]} 30. Rc5 {[%emt 0:00:23]} Ra8 {[%emt 0:00:34]} 31. Ra1 {[%emt 0:01:09]} 1-0

[Event "XVI Gran Hotel Bali 2017"]
[Site "Benidorm"]
[Date "2017.12.09"]
[Round "10"]
[White "Serna Lara, Sergio"]
[Black "Fernandez Barrera, Victor"]
[Result "1/2-1/2"]
[ECO "E12"]
[WhiteElo "2224"]
[BlackElo "2300"]
[Annotator "NA"]
[PlyCount "55"]
[EventDate "2017.??.??"]
[EventType "swiss"]
[EventCountry "ESP"]
[SourceTitle "playchess.com"]
[Source "ChessBase"]
[SourceQuality "1"]
[TimeControl "5400+30"]

1. d4 {[%emt 0:01:09]} Nf6 {[%emt 0:00:10]} 2. Nf3 {[%emt 0:00:23]} e6 {[%emt 0:01:14]} 3. c4 {[%emt 0:00:48]} b6 {[%emt 0:00:29]} 4. Bf4 {[%emt 0:00:41]} Bb7 {[%emt 0:00:56]} 5. e3 {[%emt 0:00:10]} Bb4+ {[%emt 0:01:22]} 6. Nfd2 {[%emt 0:00:10]} O-O {[%emt 0:00:51]} 7. a3 {[%emt 0:00:16]} Be7 {[%emt 0:00:11]} 8. Nc3 {[%emt 0:05:28]} c5 {[%emt 0:01:31]} 9. d5 {[%emt 0:00:13]} d6 {[%emt 0:07:12]} 10. e4 {[%emt 0:00:27]} e5 {[%emt 0:01:03]} 11. Be3 {[%emt 0:02:23]} Bc8 {[%emt 0:01:20]} 12. Be2 {[%emt 0:00:56]} Ne8 {[%emt 0:01:30]} 13. Bg4 {[%emt 0:01:09]} g6 {[%emt 0:04:28]} 14. Bxc8 {[%emt 0:02:05]} Qxc8 {[%emt 0:00:01]} 15. g4 {[%emt 0:03:21]} Ng7 {[%emt 0:03:07]} 16. Rg1 {[%emt 0:02:35]} Qd8 {[%emt 0:00:48]} 17. Nf3 {[%emt 0:00:15]} Nd7 {[%emt 0:03:57]} 18. Qe2 {[%emt 0:02:46]} a6 {[%emt 0:01:44]} 19. a4 {[%emt 0:00:24]} Kh8 {[%emt 0:03:20]} 20. Bh6 {[%emt 0:03:06]} Rg8 {[%emt 0:07:12]} 21. h4 {[%emt 0:02:56]} Ne8 {[%emt 0:04:24]} 22. Bd2 {[%emt 0:01:22]} Ng7 {[%emt 0:05:47]} 23. Bh6 {[%emt 0:15:23]} Ne8 {[%emt 0:07:32]} 24. g5 {[%emt 0:00:30]} Ng7 {[%emt 0:02:59]} 25. Bxg7+ {[%emt 0:00:36]} Rxg7 {[%emt 0:00:11]} 26. Qe3 {[%emt 0:04:39]} f5 {[%emt 0:06:20]} 27. gxf6 {[%emt 0:00:47]} Bxf6 {[%emt 0:01:11]} 28. Ng5 1/2-1/2